Cogmind - Beta 11.1 @@@ ROGUE MODE // 2022.06.23 @ 19:49:06 Player: Demise Result: Self-destructed Performance ------------- Evolutions (3) 1500 Regions Visited (9) 1800 Robots Destroyed (209) 1045 Value Destroyed (6281) 6281 Prototype IDs (12) 240 Alien Tech Used (0) 0 Bonus (2217) 2217 TOTAL SCORE: 13083 Bonus ------- High Alert Combat Kills 770 Follower Combat Kills 70 Entered Garrisons 400 Used RIF Installer 1000 Friendly Fire -23 Cogmind --------- Core Integrity 406/700 Matter 217/300 Energy 140/140 System Corruption 8% Temperature Cool (0) Movement Rolling (105) Ox1 Location -7/Factory Parts ------- > --- POWER (1) -------- Light Deuterium Engine > --- PROPULSION (5) --- Armored Wheel Armored Wheel Armored Wheel Armored Wheel Armored Wheel > --- UTILITY (5) ------ Huge Storage Unit Hacking Suite Relay Coupler [NC] (34) > --- WEAPON (2) ------- Enhanced Autogun Powered Hammer > --- INVENTORY (25) --- Improved Cooling System Structural Scanner Improved Signal Interpreter Seismic Detector Launcher Guidance Computer Energy Filter Energy Filter Improved Utility Shielding Relay Coupler [Swarmer] (42) Relay Coupler [Brawler] (31) Relay Coupler [Duelist] (36) Relay Coupler [Sentry] (31) Relay Coupler [Sentry] (32) Corruption Screen Long-range Tractor Beam Improved Trap Extractor (0/6) Heavy Disruptor Cannon Flak Gun Advanced EMP Blaster Advanced EMP Blaster Heavy Rocket Launcher Improved Datajack Remote Datajack Maul Peak State ------------ > --- POWER ------------ Light Nuclear Core > --- PROPULSION ------- Wheel Armored Wheel Armored Wheel Armored Huge Wheel > --- UTILITY ---------- Huge Storage Unit Improved Utility Shielding Layered Light Armor Plating Layered Light Armor Plating Long-range Tractor Beam > --- WEAPON ----------- Enhanced Autogun Heavy Rocket Launcher > --- INVENTORY -------- Improved Cooling System Structural Scanner Visual Processing Unit Improved Signal Interpreter Seismic Detector Launcher Guidance Computer Core Shielding Hacking Suite Hacking Suite Relay Coupler [Brawler] Relay Coupler [Duelist] Relay Coupler [Sentry] Relay Coupler [Sentry] Corruption Screen Improved Trap Extractor Heavy Disruptor Cannon Improved Assault Rifle Enhanced Autogun Advanced EMP Blaster Advanced EMP Blaster Improved Datajack Remote Datajack Maul [Rating: 47] Favorites ----------- Power Improved Ion Engine Engine Improved Ion Engine Power Core Light Nuclear Core Propulsion Wheel Leg Aluminum Leg Wheel Wheel Flight Unit Improved Flight Unit Utility Huge Storage Unit Device Seismic Detector Storage Huge Storage Unit Processor Signal Interpreter Hackware Hacking Suite Protection Improved Light Armor Plating Weapon Improved Assault Rifle Energy Gun Improved EM Shotgun Energy Cannon Heavy Disruptor Cannon Ballistic Gun Improved Assault Rifle Launcher Grenade Launcher Special Weapon Remote Datajack Impact Weapon Maul Special Melee Weapon Datajack Build | -11 -10 -10 -9 -9 -8 -8 -7 -7 -7 ------- Run | Scr Mat Min Mat Min Mat Gar Fac Gar Fac Slots Evolved 6 | . . . 2 . 2 . 2 . . Power . | . . . . . . . . . . Propulsion 3 | . . . 2 . . . 1 . . Utility 3 | . . . . . 2 . 1 . . Weapon . | . . . . . . . . . . Parts Attached 269 | 8 18 9 63 6 55 31 35 34 10 Power 14 | 1 1 . 2 . 3 . 2 4 1 Engine 11 | 1 1 . 2 . 2 . 1 3 1 Core 3 | . . . . . 1 . 1 1 . Reactor . | . . . . . . . . . . Propulsion 65 | 2 6 . 24 2 10 9 4 8 . Treads . | . . . . . . . . . . Leg 4 | . . . . . . 4 . . . Wheel 59 | 2 6 . 23 2 9 5 4 8 . Hover . | . . . . . . . . . . Flight 2 | . . . 1 . 1 . . . . Utility 94 | 3 7 6 22 2 22 4 15 7 6 Device 47 | 2 4 3 11 1 14 1 6 3 2 Storage 3 | 1 2 . . . . . . . . Processor 5 | . 1 1 2 . . . . . 1 Hackware 12 | . . . . . 1 2 5 1 3 Protection 27 | . . 2 9 1 7 1 4 3 . Artifact . | . . . . . . . . . . Weapon 96 | 2 4 3 15 2 20 18 14 15 3 Energy Gun 8 | . . . 2 . 3 3 . . . Energy Cannon 1 | . . . . . . . 1 . . Ballistic Gun 57 | 2 3 2 12 2 14 6 7 8 1 Ballistic Cannon . | . . . . . . . . . . Launcher 9 | . 1 1 . . . 3 . 4 . Special Weapon 2 | . . . . . . . 1 . 1 Impact Weapon 14 | . . . . . 3 3 4 3 1 Slashing Weapon . | . . . . . . . . . . Piercing Weapon . | . . . . . . . . . . Special Melee Weapon 5 | . . . 1 . . 3 1 . . Unidentified Prototypes 6 | . . . 4 . 2 . . . . Parts Lost 26 | . 4 . 6 . 5 5 2 3 1 Power 2 | . 1 . . . . . 1 . . Propulsion 13 | . 1 . 5 . 2 4 . 1 . Utility 7 | . . . . . 3 1 1 1 1 Weapon 4 | . 2 . 1 . . . . 1 . Highest Loss Streak 3 | . 3 . 2 . 2 2 1 1 1 To Critical Strikes . | . . . . . . . . . . Average Slot Usage (%) 93 | . 95 100 93 100 97 84 87 91 94 Engine 7 | . 12 14 10 11 1 9 2 6 7 Core 1 | . . . . . 7 . 4 . . Leg 1 | . . . . . . 7 . . . Wheel 31 | . 27 28 38 44 35 19 27 30 38 Device 7 | . 12 13 3 10 20 . 7 2 3 Storage 9 | . 14 14 11 11 9 9 7 7 7 Hackware 2 | . . . . . . 1 15 . 20 Protection 9 | . . . 7 . 4 18 5 26 . Ballistic Gun 16 | . 27 27 19 20 15 10 10 12 4 Impact Weapon 1 | . . . . . 1 2 3 1 7 Naked Turns . | . . . . . . . . . . Heaviest Build 108 | 13 88 88 96 100 107 97 107 108 100 Greatest Support 64 | 20 20 20 50 44 48 48 64 64 60 Greatest Overweight (x) 9 | 1 4 4 9 2 4 7 2 2 1 Average Overweight (x) 2 | . 2 4 2 2 1 4 1 1 1 Largest Inventory Capacity 25 | 8 25 25 25 25 25 25 25 25 25 Average Capacity 24 | 6 20 25 25 25 25 25 25 25 25 Most Carried 25 | 7 20 25 25 25 25 25 25 25 25 Average Carried 22 | 3 12 21 24 25 24 21 23 24 24 Final Capacity 25 | 8 25 25 25 25 25 25 25 25 25 Final Carried 25 | 7 20 25 25 25 25 25 21 25 25 Class Distribution -------------------- 46% | Scavenger-Mutant 32% | Mutant 20% | Bothacker-Mutant Dominant Class ---------------- Mutant | -10/Materials Scavenger-Mutant | -10/Mines Scavenger-Mutant | -9/Materials Scavenger-Mutant | -9/Mines Scavenger-Mutant | -8/Materials Bothacker-Mutant | -8/Garrison Scavenger-Mutant | -7/Factory Bothacker-Mutant | -7/Garrison Bothacker-Mutant | -7/Factory Resources | -11 -10 -10 -9 -9 -8 -8 -7 -7 -7 ----------- Run | Scr Mat Min Mat Min Mat Gar Fac Gar Fac Matter Collected 7447 | 370 562 75 1829 127 1016 935 657 1775 101 Remotely 122 | . . . . . . . . 122 . Salvage Created 8466 | 229 795 75 2899 118 1486 809 565 1456 34 Parts 467 | 14 51 9 212 11 91 26 20 31 2 Haulers Intercepted 14 | . 2 . 6 . 6 . . . . Recyclers Shooed 7 | 1 1 . 3 . 1 . 1 . . Parts Field Recycled . | . . . . . . . . . . Retrieved Matter . | . . . . . . . . . . Parts Self-Destructed . | . . . . . . . . . . Prevented . | . . . . . . . . . . Kills | -11 -10 -10 -9 -9 -8 -8 -7 -7 -7 ------- Run | Scr Mat Min Mat Min Mat Gar Fac Gar Fac Combat Hostiles Destroyed 140 | . 16 6 50 3 16 17 7 24 1 Guns 105 | . 16 3 50 3 16 2 5 9 1 Cannons 1 | . . . . . . . 1 . . AOE 28 | . . 3 . . . 13 . 12 . Classes Destroyed 15 | 3 5 . 3 . 2 . 1 1 . Worker 23 | 2 2 . 12 2 4 . 1 . . Builder 6 | . . . 3 . 2 . 1 . . Tunneler 13 | 5 . . 6 1 . . 1 . . Hauler 14 | . 2 . 6 . 6 . . . . Recycler 7 | 1 . . 2 . 2 . 2 . . Mechanic 1 | . . . . . 1 . . . . Operator 9 | . 2 . 4 . 2 . 1 . . Watcher 6 | . 2 . 2 . 2 . . . . Swarmer 32 | . 3 6 10 3 . 4 . 6 . Grunt 78 | . 13 . 30 . 7 10 2 15 1 Brawler 1 | . . . 1 . . . . . . Duelist 1 | . . . . . . . . 1 . Sentry 17 | . . . 9 . 7 . 1 . . Hunter 6 | . . . . . 2 3 1 . . Programmer 5 | . . . . . . . 3 2 . Best Kill Streak 8 | 4 3 3 6 3 4 5 4 8 1 Combat Bots Only 8 | . 3 3 5 3 3 5 2 8 1 Max Kills in Single Turn 4 | 1 1 3 2 1 2 4 1 2 1 Gunslinging 1 | . . . 1 . . . . 1 . Exploded 4 | . . 3 . . . 4 . 2 . Melee . | . . . . . . . . . . Uniques/NPCs Destroyed . | . . . . . . . . . . Combat | -11 -10 -10 -9 -9 -8 -8 -7 -7 -7 -------- Run | Scr Mat Min Mat Min Mat Gar Fac Gar Fac Damage Taken 6328 | . 669 89 1744 41 1088 719 645 1135 198 Core 1003 | . 163 24 294 8 143 77 89 169 36 Absorbed by Shields 120 | . . . . . . . . 120 . Redirected to Shielding 168 | . . . . . 24 97 11 36 . Regen/Repaired (Parts) 1053 | . 63 . 454 . 147 . 152 . 237 Core Remaining (%) 52 | 100 . 25 . 24 . 60 . . . Volleys Fired 770 | 15 99 7 248 10 84 88 33 182 4 Largest 2 | 2 2 2 2 2 2 2 2 2 1 Hottest 110 | 40 40 40 46 46 68 90 110 64 25 Shots Fired 1452 | 30 189 13 487 19 167 147 58 336 6 Gun 1408 | 30 188 12 487 19 167 128 51 322 4 Cannon 2 | . . . . . . . 2 . . Launcher 35 | . 1 1 . . . 19 . 14 . Special 7 | . . . . . . . 5 . 2 Kinetic 1391 | 30 188 12 487 19 161 117 51 322 4 Thermal . | . . . . . . . . . . Explosive 35 | . 1 1 . . . 19 . 14 . Electromagnetic 19 | . . . . . 6 11 2 . . Robot Hit Streak 54 | 6 10 4 20 5 15 30 7 54 5 Robot Miss Streak 6 | 3 6 2 6 1 3 3 5 3 . Penetration Max . | . . . . . . . . . . Secondary Targets 3 | . . . 2 . . . . 1 . Max Gunslinging Chain 1 | . . . 1 . . . . 1 . Shots Hit Robots 1067 | 20 117 8 301 11 123 135 49 299 4 Core Hits 448 | 9 45 7 130 6 57 73 10 110 1 Critical Kills 8 | . . . 3 . 3 . 1 1 . Critical Parts Destroyed 14 | . . . 2 . 1 3 2 6 . Critical Strikes 22 | . . . 5 . 4 3 3 7 . Destroy 11 | . . . 5 . 2 . 1 3 . Smash 11 | . . . . . 2 3 2 4 . Melee Attacks 94 | . . . . . 17 32 26 18 1 Impact 72 | . . . . . 17 21 15 18 1 Slashing . | . . . . . . . . . . Piercing . | . . . . . . . . . . Sneak Attacks 19 | . . . . . 3 4 12 . . Combat Hostiles 2 | . . . . . . 1 1 . . Follow-up Attacks . | . . . . . . . . . . Damage Inflicted 17544 | 264 1323 191 4169 168 2387 2788 1214 4998 42 Guns 12271 | 264 1283 68 4169 168 1927 1023 568 2759 42 Cannons 42 | . . . . . . . 42 . . Explosions 2981 | . 40 123 . . . 1296 . 1522 . Melee 2201 | . . . . . 460 469 594 678 . Ramming 49 | . . . . . . . 10 39 . Kinetic 12007 | 264 1283 68 4169 168 1853 833 568 2759 42 Thermal . | . . . . . . . . . . Explosive 2981 | . 40 123 . . . 1296 . 1522 . Electromagnetic 306 | . . . . . 74 190 42 . . Impact 2201 | . . . . . 460 469 594 678 . Slashing . | . . . . . . . . . . Piercing . | . . . . . . . . . . Highest Corruption 8 | . . . . . 2 2 5 7 8 Average Corruption 3 | . . . . . 2 2 2 6 7 Corruption Purged . | . . . . . . . . . . Corruption Blocked . | . . . . . . . . . . Effects 134 | . . . . . 26 26 12 53 17 Message Errors 31 | . . . . . 3 10 4 8 6 Matter Fused 37 | . . . . . 9 8 3 13 4 Heat Flow Errors 16 | . . . . . 6 2 1 7 . Energy Discharges 14 | . . . . . 1 1 2 8 2 Data Loss (minor) 13 | . . . . . 3 4 . 5 1 Data Loss (major) 5 | . . . . . . . 1 2 2 Misfires 4 | . . . . . 2 . . . 2 Alerts 3 | . . . . . . 1 . 2 . Weapon Failures 11 | . . . . . 2 . 1 8 . Overload Shots . | . . . . . . . . . . Overflow Damage 1002 | . . . . . 61 183 447 311 . Projectiles . | . . . . . . . . . . Explosions 66 | . . . . . . 38 . 28 . Melee 936 | . . . . . 61 145 447 283 . Knockbacks 8 | . . . . . . 3 3 2 . Impact 8 | . . . . . . 3 3 2 . Kinetic . | . . . . . . . . . . Secondary . | . . . . . . . . . . Self-Inflicted Damage 23 | . . . . . . . 5 18 . Shots . | . . . . . . . . . . Rammed 5 | . . . 1 . . . 1 3 . Targets Rammed 5 | . . . 1 . . . 1 3 . Kicked . | . . . . . . . . . . Crushed . | . . . . . . . . . . Highest Temperature 276 | . 6 . 158 . 273 264 106 276 . Average Temperature 43 | . 3 . 13 . 102 22 20 50 . Received Heat Transfer 2146 | . 375 . 699 . 321 279 120 334 18 Effects 4 | . . . . . 2 . . 2 . Interference 4 | . . . . . 2 . . 2 . Siege Activations . | . . . . . . . . . . Robots Corrupted 1 | . . . . . . 1 . . . Combat Hostiles 1 | . . . . . . 1 . . . Parts Fried 22 | . . . . . 1 3 12 6 . Impact Corruptions 31 | . . . . . 3 5 14 9 . Robots Melted . | . . . . . . . . . . Combat Hostiles . | . . . . . . . . . . Parts Melted . | . . . . . . . . . . Heat Transferred . | . . . . . . . . . . Parts Sabotaged . | . . . . . . . . . . Parts Stolen . | . . . . . . . . . . Parts Stripped . | . . . . . . . . . . Power Chain Reactions . | . . . . . . . . . . Missiles Intercepted . | . . . . . . . . . . Alert | -11 -10 -10 -9 -9 -8 -8 -7 -7 -7 ------- Run | Scr Mat Min Mat Min Mat Gar Fac Gar Fac Peak Influence 1315 | 40 475 158 1315 556 331 776 508 776 459 Initial 481 | . 26 119 2 481 142 175 407 74 407 Average 442 | 15 296 86 689 433 226 604 123 591 396 Maximum Alert Level 4 | . 2 . 4 2 1 3 2 3 2 Low Security (%) 25 | 100 14 100 14 . 27 3 88 7 . Level 1 30 | . 72 . 31 43 72 7 . 4 16 Level 2 26 | . 12 . 10 56 . 56 10 67 83 Level 3 9 | . . . 11 . . 31 . 20 . Level 4 7 | . . . 31 . . . . . . Level 5 . | . . . . . . . . . . High Security . | . . . . . . . . . . Max Security . | . . . . . . . . . . Sterilizations 1 | . . . 1 . . . . . . Squads Dispatched 37 | . 8 . 15 . 4 . 9 . 1 Investigation 24 | . 6 . 10 . 3 . 4 . 1 Extermination 1 | . . . . . . . 1 . . Reinforcement 12 | . 2 . 5 . 1 . 4 . . Assault . | . . . . . . . . . . Garrison . | . . . . . . . . . . Intercept . | . . . . . . . . . . Searches Triggered . | . . . . . . . . . . Construction Impeded 1 | . . . 1 . . . . . . Haulers Reinforced . | . . . . . . . . . . Active Scanning Responses . | . . . . . . . . . . Cargo Convoy Interrupts 1 | . . . . . . . 1 . . Stealth | -11 -10 -10 -9 -9 -8 -8 -7 -7 -7 --------- Run | Scr Mat Min Mat Min Mat Gar Fac Gar Fac Distress Signals 5 | . 2 . 1 . 2 . . . . Communications Jammed . | . . . . . . . . . . Distress Signals . | . . . . . . . . . . Times Spotted 215 | . 39 6 72 3 30 21 14 25 5 Peak Tracking Total 7 | . 5 3 5 3 3 7 3 7 3 Tactical Retreats 11 | . 2 . 4 . 2 1 . 2 . Traps | -11 -10 -10 -9 -9 -8 -8 -7 -7 -7 ------- Run | Scr Mat Min Mat Min Mat Gar Fac Gar Fac Traps Triggered 24 | . 2 . 1 . 1 9 4 5 2 Indirectly . | . . . . . . . . . . Trap Hack Attempts 44 | . . . 30 . . 14 . . . Triggered . | . . . . . . . . . . Disarmed . | . . . . . . . . . . Reprogrammed 6 | . . . 4 . . 2 . . . Reused 3 | . . . . . 1 . . . 2 Traps Extracted 5 | . . . 4 . 1 . . . . Installed 4 | . . . . . 2 . . . 2 Triggered 4 | . . . . . 1 . 1 . 2 Most Traps Carried 4 | . . . 4 4 4 3 3 3 3 Machines | -11 -10 -10 -9 -9 -8 -8 -7 -7 -7 ---------- Run | Scr Mat Min Mat Min Mat Gar Fac Gar Fac Machines Disabled 13 | . 2 . 5 . 1 3 . 2 . Max in Single Turn 1 | . 1 . 1 . 1 1 . 1 . Garrison Relay 5 | . . . . . . 3 . 2 . Machines Sabotaged . | . . . . . . . . . . Garrisons Compromised 1 | . . . . . . . 1 . . Overloaded Fab Kills . | . . . . . . . . . . Hacking | -11 -10 -10 -9 -9 -8 -8 -7 -7 -7 --------- Run | Scr Mat Min Mat Min Mat Gar Fac Gar Fac Machines Accessed 55 | . 9 1 14 . 13 . 13 . 5 Terminals 29 | . 6 . 8 . 9 . 5 . 1 Fabricators 4 | . . . . . . . 3 . 1 Repair Stations 9 | . 1 . 2 . 1 . 3 . 2 Recycling Units 7 | . 2 . 2 . 1 . 1 . 1 Scanalyzers 3 | . . . 2 . 1 . . . . Garrison Access 2 | . . . . . 1 . 1 . . Total Hacks 201 | . 35 1 66 . 48 . 38 . 13 Successful 137 | . 20 1 44 . 34 . 28 . 10 Failed 61 | . 14 . 21 . 13 . 10 . 3 Catastrophic 6 | . 2 . 2 . 1 . 1 . . Database Lockouts 3 | . 1 . 1 . 1 . . . . Manual 111 | . 25 . 32 . 32 . 14 . 8 Terminals 114 | . 27 . 35 . 32 . 17 . 3 Fabricators 7 | . . . . . . . 6 . 1 Repair Stations 44 | . 4 . 16 . 10 . 9 . 5 Recycling Units 20 | . 4 . 7 . 2 . 3 . 4 Scanalyzers 10 | . . . 8 . 2 . . . . Garrison Access 5 | . . . . . 2 . 3 . . Terminal Hacks 31 | . 7 1 11 . 7 . 5 . . Part Schematic 1 | . . . . . . . 1 . . Robot Analysis 16 | . 4 . 7 . 5 . . . . Prototype ID Bank 3 | . . . 2 . 1 . . . . Open Door 1 | . . 1 . . . . . . . Branch Access Points 1 | . 1 . . . . . . . . Machine Index 1 | . . . . . . . 1 . . Terminal Index 3 | . 1 . 1 . 1 . . . . Garrison Index 1 | . . . . . . . 1 . . Unreport Threat 2 | . . . . . . . 2 . . Locate Traps 2 | . 1 . 1 . . . . . . Fabricator Hacks 1 | . . . . . . . 1 . . Build 1 | . . . . . . . 1 . . Repair Station Hacks 41 | . 4 . 14 . 10 . 9 . 4 Scan Component 21 | . 2 . 7 . 5 . 5 . 2 Repair 20 | . 2 . 7 . 5 . 4 . 2 Recycling Unit Hacks 5 | . 1 . 1 . 1 . 1 . 1 Retrieve Components 5 | . 1 . 1 . 1 . 1 . 1 Scanalyzer 10 | . . . 8 . 2 . . . . Insert Component 5 | . . . 4 . 1 . . . . Analyze 5 | . . . 4 . 1 . . . . Garrison Access Hacks 2 | . . . . . 1 . 1 . . Unlock Access 2 | . . . . . 1 . 1 . . Unauthorized Hacks 47 | . 8 . 10 . 13 . 11 . 5 Terminals 30 | . 6 . 8 . 11 . 4 . 1 Assimilate 2 | . . . . . 2 . . . . Botnet 25 | . 5 . 7 . 8 . 4 . 1 Operators 3 | . 1 . 1 . 1 . . . . Fabricators 5 | . . . . . . . 4 . 1 Fabnet 4 | . . . . . . . 3 . 1 Haulers 1 | . . . . . . . 1 . . Repair Stations 1 | . . . . . . . . . 1 Mechanics 1 | . . . . . . . . . 1 Recycling Units 8 | . 2 . 2 . 1 . 1 . 2 Recyclers 2 | . . . . . 1 . . . 1 Mask 1 | . . . . . . . . . 1 Tunnel 5 | . 2 . 2 . . . 1 . . Scanalyzers . | . . . . . . . . . . Garrison Access 3 | . . . . . 1 . 2 . . Reprogram 2 | . . . . . 1 . 1 . . Watchers 1 | . . . . . . . 1 . . Data Cores Recovered . | . . . . . . . . . . Used . | . . . . . . . . . . Hacking Detections 47 | . 8 . 13 . 11 . 11 . 4 Full Trace Events 18 | . 3 . 8 . 3 . 3 . 1 Feedback Events . | . . . . . . . . . . Feedback Blocked . | . . . . . . . . . . Robot Schematics Acquired . | . . . . . . . . . . Robots Built . | . . . . . . . . . . Authchips . | . . . . . . . . . . Time . | . . . . . . . . . . Total Robot Build Rating . | . . . . . . . . . . Part Schematics Acquired 6 | . . . 4 . 1 . 1 . . Parts Built 1 | . . . . . . . 1 . . Authchips . | . . . . . . . . . . Time 39 | . . . . . . . 39 . . Total Part Build Rating 7 | . . . . . . . 7 . . Parts Repaired 19 | . 2 . 7 . 5 . 3 . 2 Time 684 | . 52 . 218 . 211 . 99 . 104 Parts Recycled . | . . . . . . . . . . Recycled Matter . | . . . . . . . . . . Retrieved Matter . | . . . . . . . . . . Retrieved Components 20 | . 10 . 1 . 1 . 6 . 2 Parts Scanalyzed 5 | . . . 4 . 1 . . . . Part Schematics Acquired 5 | . . . 4 . 1 . . . . Parts Damaged 1 | . . . 1 . . . . . . Bothacking | -11 -10 -10 -9 -9 -8 -8 -7 -7 -7 ------------ Run | Scr Mat Min Mat Min Mat Gar Fac Gar Fac Used RIF Installer 2 | . . . . . . 1 . 1 . Coupler Efficiency 1 | . . . . . . . . 1 . Robots Hacked 12 | . . . . . . 5 6 . 1 Non-combat 1 | . . . . . . . 1 . . Combat 11 | . . . . . . 5 5 . 1 Robot Hacks Applied 16 | . . . . . . 6 9 . 1 parse_system 1 | . . . . . . 1 . . . generate_echo 1 | . . . . . . . 1 . . purge_threat 1 | . . . . . . . 1 . . find_terminals 1 | . . . . . . . 1 . . locate_traps 1 | . . . . . . . 1 . . spike_heat 1 | . . . . . . . 1 . . wipe_record 1 | . . . . . . 1 . . . go_dormant 1 | . . . . . . . 1 . . overwrite_iff 1 | . . . . . . 1 . . . formatsys_high 7 | . . . . . . 3 3 . 1 Relay Couplers Released 24 | . . . . . . 15 . 9 . Machine Destruction 24 | . . . . . . 15 . 9 . Attached 7 | . . . . . . 2 3 1 1 Fabnet Peak Effective % . | . . . . . . . . . . Robots Rewired . | . . . . . . . . . . Allies Hacked . | . . . . . . . . . . Hacks Repelled . | . . . . . . . . . . Allies | -11 -10 -10 -9 -9 -8 -8 -7 -7 -7 -------- Run | Scr Mat Min Mat Min Mat Gar Fac Gar Fac Total Allies 8 | . . . . . . 4 3 . 1 Largest Group 3 | . . . . . . 2 3 . 1 Highest-Rated Group 64 | . . . . . . 32 64 . 32 Highest-Rated Ally 32 | . . . . . . 16 32 . 32 Total Orders 1 | . . . . . . . 1 . . STAY 1 | . . . . . . . 1 . . Ally Attacks 32 | . . . . . . 14 16 . 2 Total Damage 495 | . . . . . . 168 228 . 99 Kills 3 | . . . . . . 1 2 . . Allies Corrupted . | . . . . . . . . . . Allies Melted . | . . . . . . . . . . Intel | -11 -10 -10 -9 -9 -8 -8 -7 -7 -7 ------- Run | Scr Mat Min Mat Min Mat Gar Fac Gar Fac Robot Analysis Total 16 | . 4 . 7 . 5 . . . . Derelict Logs Recovered 1 | . . 1 . . . . . . . Drone Launches . | . . . . . . . . . . Drone Recoveries . | . . . . . . . . . . Exploration | -11 -10 -10 -9 -9 -8 -8 -7 -7 -7 ------------- Run | Scr Mat Min Mat Min Mat Gar Fac Gar Fac Turns Passed 14798 | 147 1396 892 3673 708 2444 2255 1172 1633 478 Spaces Moved 8626 | 100 816 605 1740 520 1498 1222 801 935 389 Core 15 | 15 . . . . . . . . . Treads . | . . . . . . . . . . Legs . | . . . . . . . . . . Wheels 8611 | 85 816 605 1740 520 1498 1222 801 935 389 Hover . | . . . . . . . . . . Flight . | . . . . . . . . . . Fastest Speed 50 | 50 80 140 105 115 102 105 105 105 105 Average Speed 119 | 80 119 140 117 115 112 148 107 105 105 Slowest Speed 215 | 100 140 140 215 115 145 195 123 120 105 Overloaded Moves . | . . . . . . . . . . Propulsion Burnouts . | . . . . . . . . . . Robots Hopped . | . . . . . . . . . . Cave-ins Triggered . | . . . . . . . . . . Exploration Rate (%) 64 | 5 98 98 98 81 89 75 20 76 8 Regions Visited 9 Branch Regions 2 Pre-discovered Areas 5 | . 2 . 2 . . . 1 . . Known Exits Taken 6 | . 1 1 1 1 1 . 1 . . Unknown Exits Taken 1 | 1 . . . . . . . . . Scrap Searched 2 | . . 1 . 1 . . . . . Spaces Dug 25 | . 7 . . . 8 1 8 . 1 Terrain Destroyed 109 | . 7 6 . . 8 31 8 48 1 Melee 18 | . . . . . 8 1 8 . 1 Projectile . | . . . . . . . . . . AOE 91 | . 7 6 . . . 30 . 48 . Terrain Rammed . | . . . . . . . . . . Walls Destroyed . | . . . . . . . . . . Machines Disabled . | . . . . . . . . . . Actions | -11 -10 -10 -9 -9 -8 -8 -7 -7 -7 --------- Run | Scr Mat Min Mat Min Mat Gar Fac Gar Fac Total 11711 | 135 1065 638 2921 610 2064 1501 1048 1275 454 Wait 1457 | . 95 4 765 73 353 5 94 31 37 Move 8619 | 99 815 604 1739 519 1498 1221 801 934 389 Hop . | . . . . . . . . . . Pick Up 134 | 11 24 9 25 . 20 17 15 10 3 Fast Attach 73 | 5 6 . 20 . 15 6 9 8 4 Attach 40 | 3 5 1 8 . 5 4 9 5 . Detach 29 | . 2 1 5 . 2 3 7 5 4 Swap 156 | . 7 8 35 6 35 21 17 21 6 Drop 153 | 2 12 4 45 2 33 18 19 14 4 Fire 770 | 15 99 7 248 10 84 88 33 182 4 Melee 94 | . . . . . 17 32 26 18 1 Ram 5 | . . . 1 . . . 1 3 . Kick . | . . . . . . . . . . Crush . | . . . . . . . . . . Escape Stasis 123 | . . . . . . 72 16 35 . Rewire 10 | . . . . . . . 1 9 . Trap 48 | . . . 30 . 2 14 . . 2 Miscellaneous . | . . . . . . . . . . Route ------- -11/Scrapyard -10/Materials (discovered 4 exits: *Mat x3 / *Min) -10/Mines (discovered 3 exits: *Mat x2 / *Exi) -9/Materials (discovered 4 exits: *Mat x3 / *Min) -9/Mines (discovered 3 exits: *Mat x2 / [*Zio]) -8/Materials (discovered 3 exits: *Fac x2 / Gar) -8/Garrison (discovered 3 exits: *Fac x3) -7/Factory (discovered 4 exits: [*Fac x2] / [*Sto] / Gar) -7/Garrison (discovered 3 exits: *Fac x3) -7/Factory (discovered 1 exit: [*Fac]) History --------- Turn | Location | Event 15 | -11/Scrapyard | Discovered new exit (range 15) 148 | -11/Scrapyard | Entered Materials 279 | -10/Materials | Discovered new exit (range 13) 280 | -10/Materials | Central database locked down 310 | -10/Materials | Build established: Mutant 313 | -10/Materials | Discovered new exit (range 8) 403 | -10/Materials | Discovered new exit (range 5) 419 | -10/Materials | Identified exit to Materials 510 | -10/Materials | Identified exit to Mines 719 | -10/Materials | Lost 3 parts (1p1n1w) 794 | -10/Materials | Discovered exit to Materials (range 13) 848 | -10/Materials | Core integrity fell below 50% 970 | -10/Materials | Repaired Wheel 998 | -10/Materials | Repaired Wheel 1304 | -10/Materials | Build established: Scavenger-Mutant 1544 | -10/Materials | Entered Mines 1808 | -10/Mines | Learned location of 1 exit from Materials 1986 | -10/Mines | Deemed a non-threat by the Exiles lab entrance 1986 | -10/Mines | Discovered new exit (range 5) 1994 | -10/Mines | Identified exit to Exiles 2089 | -10/Mines | A weapon hastily lodged in a ceiling crevice suddenly fell to the ground 2138 | -10/Mines | Met a Derelict who couldn't figure out how to use a Trap Extractor 2248 | -10/Mines | Received a Rocket Launcher from a helpful Derelict 2249 | -10/Mines | Discovered exit to Materials (range 6) 2412 | -10/Mines | Discovered exit to Materials (range 7) 2436 | -10/Mines | Entered Materials 2436 | -9/Materials | Evolved 2 slots: Propulsion x2 2437 | -9/Materials | Identified exit to Materials 2834 | -9/Materials | Discovered new exit (range 16) 2878 | -9/Materials | Repaired Wheel 2917 | -9/Materials | Repaired Imp. Light Armor Plating 2944 | -9/Materials | Repaired Wheel 3032 | -9/Materials | Identified exit to Mines 3508 | -9/Materials | Repaired Hvy. Assault Rifle? 3600 | -9/Materials | Repaired Imp. Light Armor Plating 3633 | -9/Materials | Repaired Imp. Ion Engine 3660 | -9/Materials | Repaired Seismic Detector 4084 | -9/Materials | Core integrity fell below 50% 4238 | -9/Materials | Discovered exit to Materials (range 15) 4775 | -9/Materials | Discovered exit to Materials (range 12) 4909 | -9/Materials | Build established: Mutant 5062 | -9/Materials | Central database locked down 5190 | -9/Materials | Sterilization system engaged 5190 | -9/Materials | Non-combat units ordered to evacuate 5290 | -9/Materials | Combat units ordered to evacuate 5490 | -9/Materials | Ambient heat levels rising (+10) 5640 | -9/Materials | Ambient heat levels rising (+10) 5790 | -9/Materials | Ambient heat levels rising (+10) 5940 | -9/Materials | Ambient heat levels rising (+10) 6090 | -9/Materials | Ambient heat levels rising (+10) 6109 | -9/Materials | Entered Mines 6392 | -9/Mines | Build established: Scavenger-Mutant 6726 | -9/Mines | Discovered exit to Materials (range 7) 6751 | -9/Mines | Discovered exit to Materials (range 6) 6753 | -9/Mines | A Derelict revealed a hidden shortcut to a safe place 6817 | -9/Mines | Entered Materials 6817 | -8/Materials | Evolved 2 slots: Utility x2 7067 | -8/Materials | Discovered new exit (range 3) 7120 | -8/Materials | Build established: Mutant 7735 | -8/Materials | Build established: Scavenger-Mutant 8342 | -8/Materials | Repaired Broken Imp. EM Shotgun 8375 | -8/Materials | Repaired Arm. Wheel 8402 | -8/Materials | Repaired Structural Scanner 8455 | -8/Materials | Repaired Imp. Assault Rifle 8494 | -8/Materials | Repaired Com. Battery 8692 | -8/Materials | Discovered new exit (range 4) 8758 | -8/Materials | Central database locked down 9171 | -8/Materials | Build established: Mutant 9261 | -8/Materials | Identified exit to Garrison 9261 | -8/Materials | Entered Garrison 9344 | -8/Garrison | Garrison Relay disabled 9513 | -8/Garrison | Triggered checkpoint 9668 | -8/Garrison | Discovered new exit (range 12) 9853 | -8/Garrison | Discovered new exit (range 10) 9874 | -8/Garrison | Installed Relay Interface Framework 9922 | -8/Garrison | Triggered checkpoint 9976 | -8/Garrison | Garrison Relay disabled 10392 | -8/Garrison | Triggered checkpoint 10417 | -8/Garrison | Garrison Relay disabled 10420 | -8/Garrison | Build established: Bothacker-Mutant 10568 | -8/Garrison | Triggered checkpoint 10656 | -8/Garrison | Discovered new exit (range 14) 10776 | -8/Garrison | Triggered checkpoint 11501 | -8/Garrison | Build established: Scavenger-Mutant 11516 | -8/Garrison | Entered Factory 11516 | -7/Factory | Evolved 2 slots: Propulsion x1, Utility x1 11532 | -7/Factory | Discovered new exit (range 13) 11881 | -7/Factory | Discovered new exit (range 16) 12054 | -7/Factory | Fabricated Hvy. Disruptor Cannon? 12057 | -7/Factory | Repaired Arm. Huge Wheel 12214 | -7/Factory | Repaired Imp. Signal Interpreter 12267 | -7/Factory | Repaired Core Shielding 12405 | -7/Factory | Cargo convoy interrupted 12502 | -7/Factory | Discovered new exit (range 16) 12602 | -7/Factory | Build established: Mutant 12688 | -7/Factory | Identified exit to Garrison 12688 | -7/Factory | Entered Garrison 12732 | -7/Garrison | Triggered checkpoint 12758 | -7/Garrison | Garrison Relay disabled 12814 | -7/Garrison | Triggered checkpoint 12849 | -7/Garrison | Triggered checkpoint 12907 | -7/Garrison | Destroyed 8 combat bots 13072 | -7/Garrison | Build established: Bothacker-Mutant 13110 | -7/Garrison | Triggered checkpoint 13180 | -7/Garrison | Discovered new exit (range 12) 13475 | -7/Garrison | Discovered new exit (range 14) 13540 | -7/Garrison | Triggered checkpoint 13625 | -7/Garrison | Discovered new exit (range 15) 13626 | -7/Garrison | Triggered checkpoint 13783 | -7/Garrison | Expanded RIF knowledge: Coupler Efficiency 13958 | -7/Garrison | Triggered checkpoint 14260 | -7/Garrison | Garrison Relay disabled 14321 | -7/Garrison | Entered Factory 14363 | -7/Factory | Discovered new exit (range 16) 14442 | -7/Factory | Repaired Enh. Autogun? 14623 | -7/Factory | Repaired Flak Gun? 14799 | -7/Factory | Self-destructed Last Messages --------------- 14787_ Triggered Proton Bomb Trap. 14787_ A bubble of electromagnetic force engulfs the area. 14787_ Proton Bomb Trap short circuited. 14787_ A bubble of electromagnetic force engulfs the area. 14787_ Proton Bomb Trap short circuited. 14787_ A bubble of electromagnetic force engulfs the area. 14787_ Proton Bomb Trap short circuited. 14787_ A bubble of electromagnetic force engulfs the area. 14794_ System corrupted: FCS attempts to trigger Enh. Autogun. 14794_ System corrupted: Enh. Autogun misfires. 14798_ O-24 Administrator: "IFF HANDSHAKE FAILED. SECURING TERMINAL." 14799_ Connecting with Fabricator... >>Trojan(Fabnet) Trojan loaded successfully. Testing... Fabnet at current depth includes 4 machines. Accumulated fabnet effectiveness: Active: 0% Next depth: 12% [Achievement: I Was Wrong!] Map ----- +----------------------------------------------------+ | ?????????????????????????????????????????????????? | | ?????????????????????????????????????????????????? | | ?????????????????????????????????????????????????? | | ?????????????????????????????????????????????????? | | ?????????????????????????????????????????????????? | | ?????????????????????????????????????????????????? | | ?????????????????????????????????????????????????? | | ?????????????????????????????????????????????????? | | ?????????????????????????????????????????????????? | | ???????????????????????????????????????????####### | | ???????????????????????????????????????????# | | ???????????????????????????????????????????# | | ???????????????????????????????????????????# / | | ????????????????????????????????????????????! | | ???????????????????????????????????????????# | | ???????????????????????????????????????????# """ | | ?????????????????##################??????????""""" | | ????????????????? #????????? """"" | | ?????????????????? ################ | | ????????????????"" """ """ | | ????????????????"" """ """ | | ???????????????""" """ """ | | ?????????????? | | ????????????????""o""" | | ?????????????????" """ ################ | | ?????????????????" """ ""@"" #??????????##### | | ?????????????? ""F"" #####??????????????? | | ??????????????? """ #??????????????????? | | ??????????????? ##### ###### #??????????????????? | | ?????????????????????# ?????# #??????????????????? | | ?????????????????????#??????# #??????????????????? | | ????????????????????????????# #??????????????????? | | ????????????????????????????# #??????????????????? | | ????????????????????????????# #??????????????????? | | ????????????????????????????? #??????????????????? | | ????????????????????????????? #??????????????##### | | ?????????????????????????????+???????????????##### | | ?????????????????????????????????????????????## | | ?????????????????????????????????????????????## | | ?????????????????????????????????????????????## | | ?????????????????????????????????????????????## | | ?????????????????????????????????????????????## "" | | ?????????????????????????????????????????????## "" | | ?????????????????????????????????????????????## "" | | ?????????????????????????????????????????????## "" | | ?????????????????????????????????????????????## "" | | ?????????????????????????????????????????????## "" | | ?????????????????????????????????????????????## "" | | ???????????????????????????????????????######## | | ???????????????????????????????????????########### | +----------------------------------------------------+ Best States ------------- Heat Dissipation 58 Energy Generation 16 Energy Capacity 290 Matter Stores 300 Matter Capacity 300 Sight Range 16 Terrain Scan Range 16 Terrain Scan Density 10 Armor Coverage 450 Core Shielding 20 Power Shielding 33 Utility Shielding 66 Weapon Shielding 66 Evasion (%) 44 Offensive Hacking 20 Relay Coupler Types 2 Relay Coupler Value 62 Trap Extractor Capacity 6 Item Schematics ----------------- Hacking Suite | -9/Materials | Scanalyzed Imp. EM Shotgun | -9/Materials | Scanalyzed Imp. Flight Unit | -9/Materials | Scanalyzed Seismic Detector | -9/Materials | Scanalyzed Imp. Cooling System | -8/Materials | Scanalyzed Imp. Corruption Screen | -7/Factory | Hacked Robot Schematics ------------------ None Fabricated ------------ Hvy. Disruptor Cannon | x1 | -7/Factory | Preloaded Alien Tech Used ----------------- None Achievements -------------- I Was Wrong! Challenges ------------ None Game ------ Seed AntimissileAdvancedAnalyzer Manual? 0 Play Time 01:56:31 Cumulative 643.1 hours Start 2022.06.23 @ 15:45:37 End 2022.06.23 @ 19:49:06 Sessions 3 Manual Loads 0 Difficulty Rogue Special Mode None Game No. 515 Rogue 515 Adventurer 0 Explorer 0 Win Type - Total 8 Types 7/0/0/1/0/0/0/0/0 Lore% 75 Gallery% 86 Achievement% 69 Wizard Run 0 Options --------- ASCII 0 Keyboard 1 Movement Numpad Keybinds 0 Fullscreen 1 Font 12/Terminus Map View 83x54 Tactical HUD 1 Map Filters NONE Filters NONE Steam 1 RUN: 7e4023d8-fd07-4a52-8368-b0e395e2f4c5